bitfinex-derivatives/quotes_SOLF0:USTF0_20250331
["timestamp","ask_amount","ask_price","bid_price","bid_amount"]
[1743387830948,12.26818054,125.73,125.71,0.05139318]
[1743387831248,30.12,125.73,125.71,0.05139318]
[1743387831447,38.0742,125.73,125.71,0.05139318]
[1743387831647,30.12,125.73,125.71,0.05139318]
[1743387832848,38.0743,125.73,125.71,0.05139318]
[1743387833951,38.0743,125.73,125.71,62.05139318]
[1743387834647,0.05549184,125.74,125.71,62.05139318]
[1743387835050,0.05549184,125.74,125.71,70.00619318]
[1743387836949,0.05549184,125.74,125.71,62.05139318]
[1743387837854,7.9541,125.73,125.71,62.05139318]
[1743387838552,0.05549184,125.74,125.71,62.05139318]
[1743387839559,0.05549184,125.74,125.71,70.00649318]
[1743387840259,8.00919184,125.74,125.71,62.05139318]
[1743387840757,0.05549184,125.74,125.71,62.05139318]
[1743387841657,0.05549184,125.74,125.71,0.05139318]
[1743387842765,7.9545,125.73,125.71,0.05139318]
[1743387843156,7.9548,125.72,125.71,0.05139318]
[1743387843361,42.38818054,125.73,125.66,2.1356]
[1743387843753,7.9574,125.68,125.64,358.0]
[1743387844461,0.05711276,125.67,125.65,0.05174102]
[1743387844764,8.01501276,125.67,125.66,62.0]
[1743387845359,7.9586,125.66,125.65,0.05174102]
[1743387850364,38.13531276,125.67,125.65,0.05174102]
[1743387850563,0.05711276,125.67,125.65,0.05174102]
[1743387851666,8.01541276,125.67,125.65,0.05174102]
[1743387852267,7.9586,125.66,125.65,0.05174102]
[1743387857977,0.05711276,125.67,125.65,0.05174102]
[1743387859677,42.38818054,125.66,125.58,358.0]
[1743387859877,12.26818054,125.64,125.58,358.0]
[1743387860077,30.12,125.63,125.56,10.068]
[1743387860574,30.12,125.63,125.56,2.1034]
[1743387860782,0.04996571,125.61,125.58,0.05291954]
[1743387860973,0.04996571,125.61,125.59,62.0]
[1743387861578,0.04996571,125.61,125.59,69.9626]
[1743387865591,0.04996571,125.61,125.6,7.9624]
[1743387866791,0.04996571,125.61,125.58,0.05291954]
[1743387867894,0.04996571,125.61,125.58,8.01621954]
[1743387868992,0.04996571,125.61,125.59,62.0]
[1743387869593,8.01176571,125.61,125.59,62.0]
[1743387869793,0.04996571,125.61,125.59,62.0]
[1743387870190,0.04996571,125.61,125.59,69.9626]
[1743387870998,8.01206571,125.61,125.59,62.0]
[1743387871198,12.26818054,125.6,125.58,0.05291954]
[1743387871599,30.16996571,125.61,125.58,0.05291954]
[1743387872098,7.9628,125.6,125.58,0.05291954]
[1743387872601,38.13196571,125.61,125.58,0.05291954]
[1743387872900,30.16996571,125.61,125.58,0.05291954]
[1743387873102,0.04996571,125.61,125.58,0.05291954]
[1743387873296,0.04996571,125.61,125.6,7.9624]
[1743387873502,0.04996571,125.61,125.6,38.0824]
[1743387874100,0.04996571,125.61,125.6,100.0824]
[1743387881706,290.4688,125.69,125.6,470.34818054]
[1743387881905,290.4688,125.69,125.62,12.26818054]
[1743387882106,4.0288,125.69,125.63,30.12]
[1743387882698,0.05937176,125.67,125.65,0.05277059]
[1743387883708,0.05937176,125.67,125.65,8.01187059]
[1743387884201,0.05937176,125.67,125.65,0.05277059]
[1743387886509,0.05937176,125.67,125.66,30.12]
[1743387886804,0.05937176,125.67,125.65,0.05277059]
[1743387889010,0.05937176,125.67,125.65,8.01187059]
[1743387889510,0.05937176,125.67,125.65,0.05277059]
[1743387889911,0.05937176,125.67,125.65,8.01177059]
[1743387890412,0.05937176,125.67,125.65,7.92952935]
[1743387890612,7.87675876,125.71,125.65,7.92952935]
[1743387891410,7.87675876,125.71,125.67,7.9578]
[1743387891605,7.87675876,125.71,125.67,38.0578]
[1743387891809,0.0512145,125.7,125.68,0.05443532]
[1743387894411,0.0512145,125.7,125.68,2.01133532]
[1743387894717,0.0512145,125.7,125.68,9.96833532]
[1743387895517,0.0512145,125.7,125.69,69.9567]
[1743387895714,286.48,125.76,125.69,62.0]
[1743387896015,286.48,125.76,125.7,30.1]
[1743387896811,0.05586168,125.74,125.72,0.05990041]
[1743387897215,0.05586168,125.74,125.72,8.01430041]
[1743387897410,0.05586168,125.74,125.73,30.1]
[1743387898117,7.9511,125.78,125.73,30.1]
[1743387898317,2.1549,125.8,125.73,30.1]
[1743387898714,288.5344,125.82,125.74,12.30268451]
[1743387899016,2.1544,125.82,125.74,370.30268451]
[1743387899219,2.1544,125.82,125.75,69.9526]
[1743387899422,0.0607096,125.79,125.77,0.05095672]
[1743387902620,0.0607096,125.79,125.78,62.0]
[1743387902822,0.0607096,125.79,125.77,0.05095672]
[1743387903323,8.0114096,125.79,125.77,0.05095672]
[1743387904422,0.0607096,125.79,125.77,0.05095672]
[1743387905726,0.0607096,125.79,125.77,8.00245672]
[1743387905926,0.0607096,125.79,125.78,62.0]
[1743387908119,0.0607096,125.79,125.77,0.05095672]
[1743387909329,8.0114096,125.79,125.77,0.05095672]
[1743387910732,0.0607096,125.79,125.77,0.05095672]
[1743387915142,0.0607096,125.79,125.78,62.0]
[1743387917740,7.92351604,125.79,125.77,0.05095672]
[1743387917941,7.86280644,125.78,125.74,358.0]
[1743387918248,7.86280644,125.76,125.71,37.92280644]
[1743387918447,7.9534,125.75,125.71,37.92280644]
[1743387918836,7.954,125.74,125.71,30.06]
[1743387919042,8.01267805,125.74,125.72,0.05485757]
[1743387920846,8.01267805,125.74,125.73,62.0]
[1743387921543,0.05867805,125.74,125.73,62.0]
[1743387922849,2.0427,125.78,125.73,62.0]
[1743387923047,9.9941,125.78,125.74,30.06]
[1743387923351,14.43306875,125.81,125.74,30.06]
[1743387923554,7.9506,125.79,125.74,42.35516875]
[1743387923749,2.1379,125.81,125.77,7.9515]
[1743387923941,2.1379,125.81,125.78,0.05297975]
[1743387924251,0.05299015,125.8,125.78,0.05297975]
[1743387926153,0.05299015,125.8,125.79,62.0]
[1743387928455,0.05299015,125.8,125.79,69.9503]
[1743387929155,0.05299015,125.8,125.79,62.0]
[1743387929956,0.05299015,125.8,125.79,69.9503]
[1743387930958,0.05299015,125.8,125.79,62.0]
[1743387934953,8.00269015,125.8,125.79,62.0]
[1743387935159,0.05299015,125.8,125.78,0.05297975]
[1743387935860,7.9503,125.79,125.78,0.05297975]
[1743387936061,0.05299015,125.8,125.78,0.05297975]
[1743387936262,8.00299015,125.8,125.78,0.05297975]
[1743387936462,0.05299015,125.8,125.78,0.05297975]
[1743387938162,0.05299015,125.8,125.78,62.05297975]
[1743387941368,0.05299015,125.8,125.79,7.9503]
[1743387941668,7.85527886,125.86,125.79,37.91527886]
[1743387941868,9.82287886,125.87,125.82,7.85527886]
[1743387942068,7.85527886,125.87,125.83,7.85527886]
[1743387942368,7.85527886,125.88,125.83,7.85527886]
[1743387942868,8.00580325,125.87,125.84,0.05122415]
[1743387943069,15.86108211,125.87,125.84,0.05122415]
[1743387943666,7.946,125.86,125.84,0.05122415]
[1743387944372,7.91538211,125.87,125.84,0.05122415]
[1743387944664,7.91538211,125.87,125.85,62.0]
[1743387945169,7.9459,125.86,125.85,62.0]
[1743387946469,8.00550325,125.87,125.85,62.0]
[1743387947268,8.00550325,125.87,125.84,0.05122415]
[1743387949367,7.946,125.86,125.84,0.05122415]
[1743387949871,8.00580325,125.87,125.84,0.05122415]
[1743387950075,0.06010325,125.87,125.84,0.05122415]
[1743387950375,0.06010325,125.87,125.84,62.05122415]
[1743387950573,7.946,125.86,125.84,62.05122415]
[1743387951577,0.06010325,125.87,125.84,62.05122415]
[1743387952175,8.00550325,125.87,125.84,62.05122415]
[1743387952977,0.06010325,125.87,125.84,62.05122415]
[1743387953180,0.06010325,125.87,125.85,30.04]
[1743387953679,0.06010325,125.87,125.85,37.9862]
[1743387954177,0.06010325,125.87,125.86,20.21742528]
[1743387954377,12.27152528,125.93,125.86,20.21742528]
[1743387954578,7.9428,125.91,125.86,20.21742528]
[1743387954983,12.27152528,125.93,125.87,7.9448]
[1743387955182,12.27152528,125.93,125.88,30.04]
[1743387955382,7.99517924,125.91,125.89,0.05812996]
[1743387955684,0.05197924,125.91,125.89,0.05812996]
[1743387963492,7.99487924,125.91,125.89,0.05812996]
[1743387963790,0.05197924,125.91,125.89,0.05812996]
[1743387964283,7.9434,125.9,125.89,0.05812996]
[1743387964883,0.05197924,125.91,125.89,0.05812996]
[1743387965086,7.99507924,125.91,125.89,0.05812996]
[1743387968496,0.05197924,125.91,125.89,0.05812996]
[1743387969098,7.99487924,125.91,125.89,0.05812996]
[1743387969503,15.79113978,125.9,125.89,0.05812996]
[1743387974906,7.9459,125.87,125.84,69.84773978]
[1743387975107,7.84773978,125.85,125.81,358.0]
[1743387975308,7.84773978,125.84,125.81,358.0]
[1743387975510,15.79533978,125.84,125.81,358.0]
[1743387976206,7.9479,125.83,125.81,358.05383014]
[1743387977605,7.9479,125.83,125.81,0.05383014]
[1743387977804,7.90289381,125.84,125.81,0.05383014]
[1743387978103,7.84773978,125.83,125.81,0.05383014]
[1743387978308,7.84773978,125.82,125.81,0.05383014]
[1743387978609,15.79613978,125.82,125.81,0.05383014]
[1743387979212,7.84773978,125.82,125.81,0.05383014]
[1743387981112,7.9484,125.82,125.81,62.05383014]
[1743387981313,0.05515403,125.84,125.81,62.05383014]
[1743387981611,0.05515403,125.84,125.82,7.84773978]
[1743387982911,0.05515403,125.84,125.82,15.79593978]
[1743387985115,0.05515403,125.84,125.83,15.79553978]
[1743387985509,9.95143978,125.89,125.83,7.84773978]
[1743387985706,7.945,125.88,125.84,45.81453978]
[1743387986315,9.95143978,125.89,125.84,45.81453978]
[1743387986316,7.9454,125.87,125.84,37.9668]
[1743387986517,8.00607064,125.87,125.84,38.02774459]
[1743387988616,0.06067064,125.87,125.84,38.02774459]
[1743387989121,0.06067064,125.87,125.85,7.9464]
[1743387989618,0.06067064,125.87,125.86,7.9459]
[1743387989821,0.06067064,125.87,125.84,30.08094459]
[1743387990323,7.84773978,125.85,125.76,7.84773978]
[1743387990518,7.84773978,125.8,125.77,30.0]
[1743387990718,15.79783978,125.8,125.77,30.0]
[1743387991020,7.84773978,125.81,125.77,30.0]
[1743387991220,15.79713978,125.81,125.77,37.9513]
[1743387991722,0.05893946,125.8,125.78,0.05418652]
[1743387993223,0.05893946,125.8,125.78,62.05418652]
[1743387993413,15.85637924,125.8,125.78,62.05418652]
[1743387993814,8.00863946,125.8,125.78,62.05418652]
[1743387994118,7.9503,125.79,125.78,0.05418652]
[1743387994319,7.9503,125.79,125.74,358.0]
[1743387994320,20.28455124,125.8,125.74,358.0]
[1743387994623,12.28561178,125.77,125.74,358.0]
[1743387994818,7.9522,125.76,125.72,30.02]
[1743387995025,1.9514,125.78,125.72,30.02]
[1743387995223,9.9027,125.78,125.73,7.954]
[1743387995426,0.05819569,125.76,125.74,0.05230605]
[1743387997126,0.05819569,125.76,125.75,62.0]
[1743387997526,0.05819569,125.76,125.74,0.05230605]
[1743387997927,8.01069569,125.76,125.74,0.05230605]
[1743388000428,8.01069569,125.76,125.74,62.05230605]
[1743388000628,0.05819569,125.76,125.74,62.05230605]
[1743388000827,0.05819569,125.76,125.74,92.07230605]
[1743388001227,0.05819569,125.76,125.74,100.02540605]
[1743388001534,0.05819569,125.76,125.74,92.07230605]
[1743388002835,0.05819569,125.76,125.74,62.05230605]
[1743388003634,7.9529,125.75,125.74,62.05230605]
[1743388005226,7.955,125.72,125.69,358.0]
[1743388005433,7.955,125.72,125.69,388.02]
[1743388005632,7.955,125.72,125.69,358.0]
[1743388005832,7.955,125.72,125.69,388.02]
[1743388006432,8.00964165,125.72,125.69,388.07731726]
[1743388007128,7.956,125.7,125.69,0.05731726]
[1743388008130,0.05464165,125.72,125.69,0.05731726]
[1743388009834,0.05464165,125.72,125.69,8.01371726]
[1743388011239,0.05464165,125.72,125.7,62.0]
[1743388012943,8.00954165,125.72,125.7,62.0]
[1743388013543,7.9554,125.71,125.7,62.0]
[1743388014644,8.00974165,125.72,125.7,62.0]
[1743388014845,0.05464165,125.72,125.7,62.0]
[1743388015744,7.956,125.7,125.69,0.05731726]
[1743388015938,15.82953208,125.7,125.69,0.05731726]
[1743388016144,7.87353208,125.7,125.69,0.05731726]
[1743388016743,7.87353208,125.71,125.69,0.05731726]
[1743388017945,8.00994165,125.72,125.69,0.05731726]
[1743388017946,0.05464165,125.72,125.69,0.05731726]
[1743388018347,0.05464165,125.72,125.69,8.01371726]
[1743388018745,0.05464165,125.72,125.7,62.0]
[1743388019248,8.00944165,125.72,125.7,62.0]
[1743388020144,15.88297373,125.72,125.7,62.0]
[1743388024846,7.92817373,125.72,125.7,62.0]
[1743388025753,15.88327373,125.72,125.7,62.0]
[1743388026753,7.9554,125.71,125.7,62.0]
[1743388026953,7.87353208,125.71,125.69,0.05731726]
[1743388027156,15.82953208,125.7,125.69,0.05731726]
[1743388029059,37.89353208,125.7,125.6,7.87353208]
[1743388029248,7.87353208,125.65,125.61,30.02]
[1743388029453,7.87353208,125.65,125.6,7.87353208]
[1743388029652,7.9604,125.64,125.61,30.02]
[1743388030053,7.9599,125.64,125.62,62.0]
[1743388030254,8.0185456,125.64,125.62,62.0]
[1743388030658,0.0586456,125.64,125.62,62.0]
[1743388031662,8.0185456,125.64,125.62,62.0]
[1743388031862,0.0586456,125.64,125.62,62.0]
[1743388032260,8.0185456,125.64,125.62,62.0]
[1743388032564,15.89207768,125.64,125.62,62.0]
[1743388032956,7.9605,125.63,125.62,62.0]
[1743388034162,15.89227768,125.64,125.62,62.0]
[1743388035560,0.0586456,125.64,125.62,62.0]
[1743388035763,0.0586456,125.64,125.62,69.9609]
[1743388036163,0.0586456,125.64,125.62,62.0]
[1743388036364,0.0586456,125.64,125.62,69.9611]
[1743388036669,0.0586456,125.64,125.63,30.02]
[1743388042365,7.93217768,125.64,125.62,62.0]
[1743388043670,15.89237768,125.64,125.62,62.0]
[1743388043972,7.87353208,125.63,125.61,0.05844198]
[1743388044164,7.87353208,125.62,125.61,0.05844198]
[1743388045271,7.87353208,125.63,125.61,0.05844198]
[1743388046668,15.89247768,125.64,125.61,0.05844198]
[1743388046869,15.89247768,125.64,125.61,62.05844198]
[1743388050577,7.93217768,125.64,125.61,70.02014198]
[1743388051074,7.93217768,125.64,125.61,62.05844198]
[1743388053379,15.89197768,125.64,125.61,62.05844198]
[1743388053879,7.87353208,125.63,125.61,62.05844198]
[1743388054076,7.87353208,125.62,125.61,62.05844198]
[1743388054979,15.83463208,125.62,125.61,62.05844198]
[1743388055977,7.87353208,125.62,125.61,62.05844198]
[1743388056977,7.9608,125.63,125.61,62.05844198]
[1743388057385,15.89227768,125.64,125.61,62.05844198]
[1743388057579,0.0586456,125.64,125.61,62.05844198]
[1743388057886,0.0586456,125.64,125.62,37.9809]
[1743388059177,0.0586456,125.64,125.62,30.02]
[1743388059383,7.93217768,125.64,125.62,30.02]
[1743388059786,15.89237768,125.64,125.62,30.02]
[1743388060477,7.93217768,125.64,125.62,30.02]
[1743388060686,0.0586456,125.64,125.62,30.02]
[1743388061489,0.0586456,125.64,125.63,7.9605]
[1743388062390,0.0586456,125.64,125.62,37.9808]
[1743388062790,0.0586456,125.64,125.62,30.02]
[1743388063890,0.0586456,125.64,125.63,7.9605]
[1743388069193,2.0456,125.69,125.63,7.87353208]
[1743388069194,7.87353208,125.69,125.63,7.87353208]
[1743388069396,7.87353208,125.69,125.64,7.87353208]
[1743388069593,15.83103208,125.68,125.65,30.0]
[1743388069793,15.83103208,125.68,125.65,37.9589]
[1743388070291,15.83103208,125.68,125.65,38.00948031]
[1743388070491,15.88615874,125.68,125.65,38.00948031]
[1743388070693,7.87353208,125.67,125.65,0.05058031]
[1743388070995,7.87353208,125.66,125.65,0.05058031]
[1743388071396,19.93961044,125.66,125.65,0.05058031]
[1743388073300,19.93961044,125.66,125.62,365.961]
[1743388073892,4.10747836,125.65,125.62,365.961]
[1743388074300,4.16058019,125.65,125.62,366.01288685]
[1743388074501,4.10747836,125.64,125.63,7.9605]
[1743388075197,0.05310183,125.65,125.64,7.9598]
[1743388075398,0.05310183,125.65,125.64,45.83333208]
[1743388077104,0.05310183,125.65,125.64,37.9598]
[1743388077404,0.05310183,125.65,125.64,30.0]
[1743388079099,0.05310183,125.65,125.62,390.01928685]
[1743388079300,0.05310183,125.65,125.63,7.9604]
[1743388079500,0.05310183,125.65,125.62,397.89281893]
[1743388080204,0.05310183,125.65,125.63,7.96]
[1743388080405,0.05310183,125.65,125.62,397.89281893]
[1743388081205,0.05310183,125.65,125.64,7.9598]
[1743388081405,0.05310183,125.65,125.63,7.87353208]
[1743388081700,0.05310183,125.65,125.63,29.98]
[1743388082709,0.05310183,125.65,125.64,7.9598]
[1743388083301,0.05310183,125.65,125.64,15.83333208]
[1743388084506,15.82983208,125.7,125.64,7.87353208]
[1743388084701,7.87353208,125.71,125.66,7.87353208]
[1743388084896,7.87353208,125.71,125.67,37.85353208]
[1743388085107,7.9557,125.71,125.68,7.9569]
[1743388085305,4.11978639,125.7,125.68,7.9569]
[1743388085804,4.18049371,125.7,125.68,8.01365815]
[1743388086004,4.18049371,125.7,125.69,15.83023208]
[1743388086197,7.87353208,125.74,125.69,7.87353208]
[1743388086794,7.87353208,125.74,125.7,7.9556]
[1743388087003,11.99078224,125.73,125.7,7.9556]
[1743388087203,4.11725016,125.73,125.7,29.98]
[1743388087403,4.17559323,125.73,125.71,7.9553]
[1743388087707,0.05834307,125.73,125.71,7.9553]
[1743388088007,0.05834307,125.73,125.7,37.91262882]
[1743388088503,0.05834307,125.73,125.71,7.9553]
[1743388088901,0.05834307,125.73,125.7,37.91262882]
[1743388089206,0.05834307,125.73,125.72,7.9548]
[1743388089707,0.05834307,125.73,125.72,15.82833208]
[1743388090903,4.10904473,125.76,125.73,7.9536]
[1743388091102,15.82473208,125.78,125.74,29.98]
[1743388092108,0.05205554,125.77,125.75,0.05447174]
[1743388093209,0.05205554,125.77,125.76,62.0]
[1743388095513,286.36,125.85,125.76,62.0]
[1743388095514,86.89803427,125.9,125.76,427.87353208]
[1743388095715,7.87353208,125.84,125.77,29.96]
[1743388095909,7.87353208,125.84,125.79,7.87353208]
[1743388096113,15.82123208,125.84,125.8,29.96]
[1743388096512,7.87353208,125.84,125.8,29.96]
[1743388096713,0.05641209,125.83,125.81,0.05910368]
[1743388097408,0.05641209,125.83,125.81,8.00770368]
[1743388098113,0.05641209,125.83,125.82,7.9484]
[1743388098314,0.05641209,125.83,125.82,15.82193208]
[1743388098910,0.05641209,125.83,125.82,77.82193208]
[1743388101015,0.05641209,125.83,125.82,62.0]
[1743388101413,0.05641209,125.83,125.81,0.05910368]
[1743388101615,0.05641209,125.83,125.81,8.00810368]
[1743388102514,0.05641209,125.83,125.81,15.88163576]
[1743388103817,0.05641209,125.83,125.82,7.9484]
[1743388104413,0.05641209,125.83,125.82,69.9484]
[1743388105914,0.05641209,125.83,125.82,62.0]
[1743388108318,0.05641209,125.83,125.82,69.9484]
[1743388108521,0.05641209,125.83,125.82,77.82193208]
[1743388112628,0.05641209,125.83,125.82,69.87353208]
[1743388113022,0.05641209,125.83,125.82,62.0]
[1743388119526,0.05641209,125.83,125.81,0.05910368]
[1743388119731,7.87353208,125.82,125.81,0.05910368]
[1743388120938,15.82193208,125.82,125.81,0.05910368]
[1743388121941,0.05641209,125.83,125.81,0.05910368]
[1743388122241,0.05641209,125.83,125.81,7.93263576]
[1743388122442,0.05641209,125.83,125.82,7.87353208]
[1743388122739,0.05641209,125.83,125.82,77.82193208]
[1743388123241,0.05641209,125.83,125.82,69.87353208]
[1743388124241,0.05641209,125.83,125.82,77.82193208]
[1743388124737,2.1201,125.87,125.82,69.87353208]
[1743388125043,7.9449,125.88,125.84,15.82033208]
[1743388125240,7.9449,125.88,125.84,7.87353208]
[1743388125440,7.9449,125.88,125.84,15.82023208]
[1743388125844,0.05683252,125.87,125.85,0.0566082]
[1743388126434,8.00213252,125.87,125.85,0.0566082]
[1743388128242,8.00213252,125.87,125.86,62.0]
[1743388129645,0.05683252,125.87,125.85,0.0566082]
[1743388131347,8.00223252,125.87,125.85,0.0566082]
[1743388132045,0.05683252,125.87,125.85,0.0566082]
[1743388132650,0.05683252,125.87,125.85,70.0031082]
[1743388133248,0.05683252,125.87,125.85,62.0566082]
[1743388134149,0.05683252,125.87,125.85,70.0031082]
[1743388134749,0.05683252,125.87,125.85,62.0566082]
[1743388137351,8.00223252,125.87,125.85,62.0566082]
[1743388138053,7.9459,125.86,125.85,62.0566082]
[1743388138250,7.9459,125.86,125.85,0.0566082]
[1743388138954,15.81943208,125.86,125.85,0.0566082]
[1743388139253,7.9474,125.84,125.82,29.9]
[1743388139854,7.87353208,125.86,125.82,29.9]
[1743388140153,0.05042883,125.85,125.83,0.06086494]
[1743388141054,4.12795334,125.84,125.83,0.06086494]
[1743388141255,4.12795334,125.84,125.83,62.06086494]
[1743388144555,12.07515334,125.84,125.83,0.06086494]
[1743388146048,4.12795334,125.84,125.83,0.06086494]
[1743388146249,3.97609177,125.84,125.83,29.96086494]
[1743388146446,3.97609177,125.84,125.83,37.90866494]
[1743388146649,0.05042883,125.85,125.83,37.90866494]
[1743388146851,0.05042883,125.85,125.84,7.87353208]
[1743388147267,0.05042883,125.85,125.84,15.82073208]
[1743388147553,0.05042883,125.85,125.84,77.82073208]
[1743388150952,285.98,125.93,125.84,77.82073208]
[1743388151258,9.95713208,125.93,125.88,7.87353208]
[1743388151458,9.95713208,125.93,125.88,37.75353208]
[1743388151659,9.95713208,125.93,125.88,45.69823208]
[1743388151956,7.9427,125.92,125.88,37.75353208]
[1743388152257,8.00214747,125.92,125.89,0.06125867]
[1743388154361,8.00214747,125.92,125.9,62.0]
[1743388156259,7.9428,125.91,125.9,62.0]
[1743388156462,7.87353208,125.91,125.89,0.06125867]
[1743388156656,7.87353208,125.9,125.86,29.88]
[1743388156858,7.9451,125.88,125.86,29.88]
[1743388157256,7.87353208,125.9,125.86,29.88]
[1743388157757,8.00226062,125.89,125.87,0.06057237]
[1743388159358,8.00226062,125.89,125.87,62.06057237]
[1743388159962,19.90048085,125.88,125.87,62.06057237]
[1743388160161,19.90048085,125.88,125.87,0.06057237]
[1743388161062,12.02694877,125.88,125.87,0.06057237]
[1743388163768,4.08224877,125.88,125.87,0.06057237]
[1743388164262,8.00216062,125.89,125.87,0.06057237]
[1743388167163,7.9447,125.88,125.87,0.06057237]
[1743388167362,11.98566812,125.88,125.87,62.06057237]
[1743388167767,4.04096812,125.88,125.87,62.06057237]
[1743388173072,11.98566812,125.88,125.87,62.06057237]
[1743388173372,11.98566812,125.88,125.87,0.06057237]
[1743388182274,11.98566812,125.88,125.82,358.0]
[1743388182275,11.9145002,125.88,125.82,358.0]
[1743388182477,7.87353208,125.85,125.8,37.73353208]
[1743388182983,4.04096812,125.87,125.84,7.87353208]
[1743388183281,4.04096812,125.87,125.84,37.73353208]
[1743388183480,4.04096812,125.86,125.84,37.78705185]
[1743388184180,0.0502712,125.87,125.84,37.78705185]
[1743388184878,0.0502712,125.87,125.84,45.73425185]
[1743388185285,0.0502712,125.87,125.85,62.0]
[1743388185877,0.0502712,125.87,125.86,7.87353208]
[1743388186176,7.87353208,125.93,125.86,7.87353208]
[1743388186378,7.9425,125.92,125.88,15.81783208]
[1743388187283,0.05393223,125.91,125.89,0.05704024]
[1743388189088,0.05393223,125.91,125.9,62.0]
[1743388189481,0.05393223,125.91,125.9,91.86]
[1743388191688,0.05393223,125.91,125.9,99.8034]
[1743388191987,0.05393223,125.91,125.9,91.86]
[1743388195091,0.05393223,125.91,125.9,99.8034]
[1743388195391,0.05393223,125.91,125.9,107.67693208]
[1743388197088,0.05393223,125.91,125.9,99.73353208]
[1743388199385,0.05393223,125.91,125.9,29.86]
[1743388199787,0.05393223,125.91,125.89,0.05704024]
[1743388200087,7.99723223,125.91,125.89,0.05704024]
[1743388200392,7.87353208,125.9,125.86,358.0]
[1743388200694,7.87353208,125.9,125.85,29.84]
[1743388200889,0.05393223,125.91,125.87,7.87353208]
[1743388201191,0.05393223,125.91,125.88,29.84]
[1743388201387,0.05393223,125.91,125.89,7.87353208]
[1743388201795,0.05393223,125.91,125.9,7.87353208]
[1743388201998,7.87353208,125.95,125.9,7.87353208]
[1743388202189,7.87353208,125.95,125.91,29.84]
[1743388202501,7.9413,125.94,125.92,62.0]
[1743388203095,7.99730381,125.94,125.92,62.06004218]
[1743388203390,7.9415,125.93,125.92,62.06004218]
[1743388203594,15.81503208,125.93,125.92,0.06004218]
[1743388204091,7.87353208,125.93,125.87,29.84]
[1743388204293,7.87353208,125.89,125.85,29.84]
[1743388205193,8.00546084,125.88,125.86,0.05517573]
[1743388205588,0.06076084,125.88,125.86,0.05517573]
[1743388206194,7.9453,125.87,125.86,0.05517573]
[1743388206693,0.06076084,125.88,125.86,62.05517573]
[1743388206893,8.00586084,125.88,125.86,62.05517573]
[1743388207395,7.9453,125.87,125.86,62.05517573]
[1743388208396,8.00576084,125.88,125.86,62.05517573]
[1743388210596,7.9453,125.87,125.86,62.05517573]
[1743388211798,8.00566084,125.88,125.86,62.05517573]
[1743388213291,7.9453,125.87,125.86,62.05517573]
[1743388214194,7.9453,125.87,125.86,0.05517573]
[1743388215604,8.00546084,125.88,125.86,0.05517573]
[1743388215897,12.0384796,125.87,125.86,0.05517573]
[1743388217200,0.06076084,125.88,125.86,91.89517573]
[1743388217404,0.06076084,125.88,125.87,12.26714793]
[1743388217610,0.06076084,125.88,125.87,20.21244793]
[1743388219215,2.0183,125.95,125.87,12.26714793]
[1743388219408,2.0183,125.95,125.87,358.0]
[1743388219614,43.85336356,125.96,125.89,12.26714793]
[1743388219809,3.9969,125.99,125.91,12.26714793]
[1743388220012,7.9392,125.97,125.91,12.26714793]
[1743388220314,0.05626751,125.95,125.93,0.05103159]
[1743388220514,0.05626751,125.95,125.94,29.84]
[1743388222011,0.05626751,125.95,125.94,37.7809]
[1743388223816,0.05626751,125.95,125.94,29.84]
[1743388225118,0.05626751,125.95,125.94,91.84]
[1743388225707,0.05626751,125.95,125.93,0.05103159]
[1743388225912,0.05626751,125.95,125.93,29.87103159]
[1743388226312,7.9409,125.94,125.93,29.87103159]
[1743388227118,7.99666751,125.95,125.93,29.87103159]
[1743388228712,7.99666751,125.95,125.94,62.0]
[1743388230016,0.05626751,125.95,125.94,62.0]
[1743388230819,0.05626751,125.95,125.94,69.9409]
[1743388231309,0.05626751,125.95,125.94,62.0]
[1743388240530,0.05626751,125.95,125.93,29.87103159]
[1743388240827,0.05626751,125.95,125.93,0.05103159]
[1743388241031,12.26714793,125.94,125.9,358.0]
[1743388241223,12.26714793,125.92,125.85,29.8]
[1743388241424,4.315,125.91,125.85,29.8]
[1743388241633,7.85130552,125.89,125.85,29.8]
[1743388242131,0.05685095,125.88,125.86,0.05135623]
[1743388242835,8.00195095,125.88,125.86,0.05135623]
[1743388243030,0.05685095,125.88,125.86,0.05135623]
[1743388243230,0.05685095,125.88,125.87,7.85130552]
[1743388243429,0.05685095,125.88,125.87,15.79660552]
[1743388243632,0.05685095,125.88,125.87,69.9453]